Cogmind - Beta 12 @@@ ROGUE MODE // 2023.04.26 @ 01:43:01 Player: Dytto Result: Self-destructed Performance ------------- Evolutions (0) 0 Regions Visited (4) 800 Robots Destroyed (0) 0 Value Destroyed (0) 0 Prototype IDs (2) 40 Alien Tech Used (0) 0 Bonus (300) 300 TOTAL SCORE: 1140 Bonus ------- Aligned with FarCom 300 Cogmind --------- Core Integrity 172/250 Matter 237/450 Energy 350/350 System Corruption 0% Temperature Cool (0) Movement Rolling (80) Location -9/Mines Parts ------- > --- POWER (1) -------- (None) > --- PROPULSION (2) --- Wheel Compact Wheel > --- UTILITY (2) ------ High-capacity Battery Large Matter Pod > --- WEAPON (2) ------- Autogun > --- INVENTORY (5) ---- Aluminum Leg Aluminum Leg EM Pulse Gun Field Lobotomy Kit (5) Peak State ------------ > --- POWER ------------ (None) > --- PROPULSION ------- Wheel Compact Wheel > --- UTILITY ---------- Large Matter Pod Chronowheel > --- WEAPON ----------- Light Assault Rifle Field Lobotomy Kit > --- INVENTORY -------- Aluminum Leg Aluminum Leg EM Pulse Gun [Rating: 27] Favorites ----------- Power None Propulsion Compact Wheel Leg Aluminum Leg Wheel Compact Wheel Utility Large Matter Pod Device Chronowheel Storage Large Matter Pod Weapon Light Assault Rifle Ballistic Gun Light Assault Rifle Special Weapon Field Lobotomy Kit Build | -11 -10 -10 -10 -9 ------- Run | Jun Mat Min Exi Min Slots Evolved . | . . . . . Power . | . . . . . Propulsion . | . . . . . Utility . | . . . . . Weapon . | . . . . . Parts Attached 10 | 5 1 . 3 1 Power . | . . . . . Engine . | . . . . . Core . | . . . . . Reactor . | . . . . . Propulsion 4 | 4 . . . . Treads . | . . . . . Leg 2 | 2 . . . . Wheel 2 | 2 . . . . Hover . | . . . . . Flight . | . . . . . Utility 3 | . 1 . 2 . Device 1 | . . . 1 . Storage 2 | . 1 . 1 . Processor . | . . . . . Hackware . | . . . . . Protection . | . . . . . Artifact . | . . . . . Weapon 3 | 1 . . 1 1 Energy Gun . | . . . . . Energy Cannon . | . . . . . Ballistic Gun 2 | 1 . . . 1 Ballistic Cannon . | . . . . . Launcher . | . . . . . Special Weapon 1 | . . . 1 . Impact Weapon . | . . . . . Slashing Weapon . | . . . . . Piercing Weapon . | . . . . . Special Melee Weapon . | . . . . . Unidentified Prototypes 2 | . . . 2 . Parts Lost . | . . . . . Power . | . . . . . Propulsion . | . . . . . Utility . | . . . . . Weapon . | . . . . . Highest Loss Streak . | . . . . . To Critical Strikes . | . . . . . Average Slot Usage (%) 60 | . 54 57 59 67 Wheel 28 | . 28 28 28 28 Storage 18 | . 11 14 16 28 Ballistic Gun 13 | . 14 14 14 10 Naked Turns . | . . . . . Heaviest Build 10 | 1 4 4 8 10 Greatest Support 26 | 26 26 26 26 26 Greatest Overweight (x) . | . . . . . Average Overweight (x) . | . . . . . Largest Inventory Capacity 5 | 5 5 5 5 5 Average Capacity 5 | 5 5 5 5 5 Most Carried 5 | 3 3 3 5 4 Average Carried 3 | 1 3 3 3 4 Final Capacity 5 | 5 5 5 5 5 Final Carried 4 | 3 3 3 4 4 Class Distribution -------------------- 100% | Mutant Dominant Class ---------------- Mutant | -10/Materials Mutant | -10/Mines Mutant | -10/Exiles Mutant | -9/Mines Resources | -11 -10 -10 -10 -9 ----------- Run | Jun Mat Min Exi Min Matter Collected 233 | 214 . . . 19 Remotely . | . . . . . Salvage Created . | . . . . . Parts . | . . . . . Haulers Intercepted . | . . . . . Recyclers Shooed . | . . . . . Parts Field Recycled . | . . . . . Retrieved Matter . | . . . . . Parts Self-Destructed . | . . . . . Prevented . | . . . . . Kills | -11 -10 -10 -10 -9 ------- Run | Jun Mat Min Exi Min Combat Hostiles Destroyed . | . . . . . Classes Destroyed . | . . . . . Best Kill Streak . | . . . . . Combat Bots Only . | . . . . . Max Kills in Single Turn . | . . . . . Gunslinging . | . . . . . Exploded . | . . . . . Melee . | . . . . . Uniques/NPCs Destroyed . | . . . . . Combat | -11 -10 -10 -10 -9 -------- Run | Jun Mat Min Exi Min Damage Taken 150 | . . . . 150 Core 78 | . . . . 78 Absorbed by Shields . | . . . . . Core Remaining (%) 100 | 100 . . . . Volleys Fired 7 | . . . . 7 Largest 1 | . . . . 1 Hottest 20 | . . . . 20 Shots Fired 7 | . . . . 7 Gun 7 | . . . . 7 Cannon . | . . . . . Launcher . | . . . . . Special . | . . . . . Kinetic 7 | . . . . 7 Thermal . | . . . . . Explosive . | . . . . . Electromagnetic . | . . . . . Robot Hit Streak 2 | . . . . 2 Robot Miss Streak 2 | . . . . 2 Penetration Max . | . . . . . Secondary Targets . | . . . . . Shots Hit Robots 3 | . . . . 3 Core Hits 3 | . . . . 3 Critical Kills . | . . . . . Critical Parts Destroyed . | . . . . . Critical Strikes . | . . . . . Melee Attacks . | . . . . . Impact . | . . . . . Slashing . | . . . . . Piercing . | . . . . . Sneak Attacks . | . . . . . Combat Hostiles . | . . . . . Follow-up Attacks . | . . . . . Damage Inflicted 28 | . . . . 28 Guns 22 | . . . . 22 Cannons . | . . . . . Explosions . | . . . . . Melee . | . . . . . Ramming 6 | . . . . 6 Kinetic 22 | . . . . 22 Thermal . | . . . . . Explosive . | . . . . . Electromagnetic . | . . . . . Impact . | . . . . . Slashing . | . . . . . Piercing . | . . . . . Highest Corruption . | . . . . . Average Corruption . | . . . . . Corruption Purged . | . . . . . Corruption Blocked . | . . . . . Overload Shots . | . . . . . Overflow Damage . | . . . . . Projectiles . | . . . . . Explosions . | . . . . . Melee . | . . . . . Knockbacks . | . . . . . Impact . | . . . . . Kinetic . | . . . . . Secondary . | . . . . . Self-Inflicted Damage 3 | . . . . 3 Shots . | . . . . . Rammed 3 | . . . . 3 Targets Rammed 3 | . . . . 3 Kicked . | . . . . . Crushed . | . . . . . Highest Temperature . | . . . . . Average Temperature . | . . . . . Received Heat Transfer 42 | . . . . 42 Siege Activations . | . . . . . Robots Corrupted . | . . . . . Combat Hostiles . | . . . . . Parts Fried . | . . . . . Impact Corruptions . | . . . . . Robots Melted . | . . . . . Combat Hostiles . | . . . . . Parts Melted . | . . . . . Heat Transferred . | . . . . . Parts Sabotaged . | . . . . . Parts Stolen . | . . . . . Parts Stripped . | . . . . . Power Chain Reactions . | . . . . . Missiles Intercepted . | . . . . . Alert | -11 -10 -10 -10 -9 ------- Run | Jun Mat Min Exi Min Peak Influence . | . . . . . Initial . | . . . . . Average . | . . . . . Maximum Alert Level . | . . . . . Low Security (%) 100 | 100 100 100 . 100 Level 1 . | . . . . . Level 2 . | . . . . . Level 3 . | . . . . . Level 4 . | . . . . . Level 5 . | . . . . . High Security . | . . . . . Max Security . | . . . . . Squads Dispatched . | . . . . . Investigation . | . . . . . Extermination . | . . . . . Reinforcement . | . . . . . Assault . | . . . . . Garrison . | . . . . . Intercept . | . . . . . Searches Triggered . | . . . . . Construction Impeded . | . . . . . Haulers Reinforced . | . . . . . Active Scanning Responses . | . . . . . Cargo Convoy Interrupts . | . . . . . Stealth | -11 -10 -10 -10 -9 --------- Run | Jun Mat Min Exi Min Distress Signals . | . . . . . Communications Jammed . | . . . . . Distress Signals . | . . . . . Times Spotted 4 | . . . . 4 Peak Tracking Total 4 | . . . . 4 Tactical Retreats . | . . . . . Traps | -11 -10 -10 -10 -9 ------- Run | Jun Mat Min Exi Min Traps Triggered . | . . . . . Indirectly . | . . . . . Trap Hack Attempts . | . . . . . Triggered . | . . . . . Disarmed . | . . . . . Reprogrammed . | . . . . . Reused . | . . . . . Traps Extracted . | . . . . . Installed . | . . . . . Triggered . | . . . . . Machines | -11 -10 -10 -10 -9 ---------- Run | Jun Mat Min Exi Min Machines Disabled . | . . . . . Max in Single Turn . | . . . . . Machines Repaired . | . . . . . Machines Sabotaged . | . . . . . Overloaded Fab Kills . | . . . . . Hacking | -11 -10 -10 -10 -9 --------- Run | Jun Mat Min Exi Min Machines Accessed 3 | . . . 3 . Terminals . | . . . . . Fabricators . | . . . . . Repair Stations . | . . . . . Recycling Units . | . . . . . Scanalyzers . | . . . . . Garrison Access . | . . . . . Total Hacks 26 | . . . 26 . Successful 26 | . . . 26 . Failed . | . . . . . Catastrophic . | . . . . . Database Lockouts . | . . . . . Manual 1 | . . . 1 . Terminals . | . . . . . Fabricators . | . . . . . Repair Stations . | . . . . . Recycling Units . | . . . . . Scanalyzers . | . . . . . Garrison Access . | . . . . . Terminal Hacks 26 | . . . 26 . Record 26 | . . . 26 . Fabricator Hacks . | . . . . . Repair Station Hacks . | . . . . . Recycling Unit Hacks . | . . . . . Scanalyzer . | . . . . . Garrison Access Hacks . | . . . . . Unauthorized Hacks . | . . . . . Terminals . | . . . . . Fabricators . | . . . . . Repair Stations . | . . . . . Recycling Units . | . . . . . Scanalyzers . | . . . . . Garrison Access . | . . . . . Data Cores Recovered . | . . . . . Used . | . . . . . Hacking Detections . | . . . . . Full Trace Events . | . . . . . Feedback Events . | . . . . . Feedback Blocked . | . . . . . Robot Schematics Acquired . | . . . . . Robots Built . | . . . . . Authchips . | . . . . . Time . | . . . . . Total Robot Build Rating . | . . . . . Part Schematics Acquired . | . . . . . Parts Built . | . . . . . Authchips . | . . . . . Time . | . . . . . Total Part Build Rating . | . . . . . Parts Repaired . | . . . . . Time . | . . . . . Parts Recycled . | . . . . . Recycled Matter . | . . . . . Retrieved Matter . | . . . . . Retrieved Components . | . . . . . Parts Scanalyzed . | . . . . . Part Schematics Acquired . | . . . . . Parts Damaged . | . . . . . Bothacking | -11 -10 -10 -10 -9 ------------ Run | Jun Mat Min Exi Min Used RIF Installer . | . . . . . Robots Hacked . | . . . . . Non-combat . | . . . . . Combat . | . . . . . Robot Hacks Applied . | . . . . . Relay Couplers Released . | . . . . . Fabnet Peak Effective % . | . . . . . Robots Rewired . | . . . . . Allies Hacked . | . . . . . Hacks Repelled . | . . . . . Allies | -11 -10 -10 -10 -9 -------- Run | Jun Mat Min Exi Min Total Allies 2 | . . 2 . . Largest Group 2 | . . 2 . . Highest-Rated Group 39 | . . 39 . . Highest-Rated Ally 31 | . . 31 . . Total Orders . | . . . . . Ally Attacks . | . . . . . Total Damage . | . . . . . Kills . | . . . . . Allies Corrupted . | . . . . . Allies Melted . | . . . . . Intel | -11 -10 -10 -10 -9 ------- Run | Jun Mat Min Exi Min Robot Analysis Total . | . . . . . Derelict Logs Recovered . | . . . . . Drone Launches . | . . . . . Drone Recoveries . | . . . . . Exploration | -11 -10 -10 -10 -9 ------------- Run | Jun Mat Min Exi Min Turns Passed 624 | 82 47 88 283 124 Spaces Moved 579 | 55 51 71 281 121 Core 6 | 6 . . . . Treads . | . . . . . Legs 23 | 23 . . . . Wheels 550 | 26 51 71 281 121 Hover . | . . . . . Flight . | . . . . . Fastest Speed 50 | 50 90 90 90 80 Average Speed 90 | 98 90 90 90 86 Slowest Speed 120 | 120 90 90 90 90 Overloaded Moves . | . . . . . Propulsion Burnouts . | . . . . . Robots Hopped . | . . . . . Cave-ins Triggered . | . . . . . Exploration Rate (%) 26 | 3 13 31 66 21 Regions Visited 4 Branch Regions 3 Pre-discovered Areas . | . . . . . Known Exits Taken . | . . . . . Unknown Exits Taken 4 | 1 1 1 1 . Scrap Searched 1 | . . . . 1 Spaces Dug . | . . . . . Terrain Destroyed . | . . . . . Melee . | . . . . . Projectile . | . . . . . AOE . | . . . . . Terrain Rammed . | . . . . . Walls Destroyed . | . . . . . Machines Disabled . | . . . . . Actions | -11 -10 -10 -10 -9 --------- Run | Jun Mat Min Exi Min Total 670 | 80 51 94 311 134 Wait 68 | 18 . 24 24 2 Move 575 | 54 50 70 280 121 Hop . | . . . . . Pick Up 5 | 3 . . 2 . Fast Attach 6 | 3 1 . 1 1 Attach 2 | . . . 2 . Detach 2 | . . . 2 . Swap 2 | 2 . . . . Drop . | . . . . . Fire 7 | . . . . 7 Melee . | . . . . . Ram 3 | . . . . 3 Kick . | . . . . . Crush . | . . . . . Escape Stasis . | . . . . . Rewire . | . . . . . Trap . | . . . . . Miscellaneous . | . . . . . Route ------- -11/Junkyard -10/Materials -10/Mines -10/Exiles -9/Mines History --------- Turn | Location | Event 3 | -11/Junkyard | Discovered new exit (range 15) 83 | -11/Junkyard | Entered Materials 93 | -10/Materials | Discovered new exit (range 15) 122 | -10/Materials | Met 8R-AWN 130 | -10/Materials | Entered Mines 131 | -10/Mines | Followed 8R-AWN into the Mines 214 | -10/Mines | Discovered new exit (range 5) 218 | -10/Mines | Entered Exiles 240 | -10/Exiles | Welcomed by 8R-AWN 254 | -10/Exiles | Met EX-HEX 282 | -10/Exiles | Met EX-BIN 297 | -10/Exiles | Aligned with FarCom system 298 | -10/Exiles | Given EX-Vault access code 305 | -10/Exiles | Build established: Mutant 337 | -10/Exiles | Opened EX-Vault 342 | -10/Exiles | Found Prototype Device 346 | -10/Exiles | Found Prototype Special Weapon 347 | -10/Exiles | Identified Chronowheel 347 | -10/Exiles | Activated Chronowheel 348 | -10/Exiles | Identified Field Lobotomy Kit 378 | -10/Exiles | Warned to stay clear of 0b10 Research branches 408 | -10/Exiles | Met EX-DEC 491 | -10/Exiles | Discovered new exit (range 12) 501 | -10/Exiles | Left Exiles lab with Field Lobotomy Kit 501 | -10/Exiles | Entered Mines 625 | -9/Mines | Self-destructed Last Messages --------------- breakthroughs in the near term so they're doing FarCom instead. 00450_ Extracted 2 energy. 00451_ Acquired Hcp. Battery. 00491_ EXIT=FOUND LOCATION=UNKNOWN GOAL=ESCAPE 00501_ Receiving FarCom transmissions... 00584_ Lgt. Assault Rifle severed. 00586_ Slammed into G-34 Mercenary. 00588_ Com. Wheel broken. 00588_ Destabilizing: Short circuit. 00613_ T-07 Excavator is excavating. 00614_ Searching scrap... 00614_ Found Autogun. 00614_ Found Com. Wheel. 00614_ Found Arm. Wheel. 00614_ Found 19 Matter. 00615_ Acquired 19 matter. 00616_ Acquired Autogun. 00621_ T-07 Excavator is excavating. Map ----- +----------------------------------------------------+ | ?????????? ??????????????? | | ?????????# ??????????????? | | ?????????# #??????????????? | | ????????## #??????????????? | | ??????### ???????????????? | | ?????## ???????????????? | | ?????# ????????????????? | | ?????# #####????????????? | | ?????# ? #????????????? | | ?????# ### #????????????? | | ????## ## #????????????? | | ????# ## #????????????? | | ????# l ## #????????????? | | ????# gl #????????????? | | ????# g## ### #????????????? | | ????# #####?# ######???????? | | ????# #?????# ######### | | ????# #?????###### | | ???##= #???????#### ######## | | ???# =#???????# #???# | | ???# ###???????## #???# | | ???# #??????????# #???# | | ???# #??????????" #??## | | ???# #??????????" #??# | | ???# #??????????#X #??# | | ???#@#?????????## #??#[ | | ???# #?????????# #??# | | ???# #?????????# #??## | | ???#t ?????????# #???## | | ??? ##?????????### #####????? | | ???#?????????????# #?????#### | | ?????????????????# #?????# | | ?????????????????# #?????# " | | ?????????????????# #####?# " | | ?????????????????# #?# " | | ?????????????????##### #?# | | ?????????????????????# #?# | | ?????????????????????# ### | | ?????????????????????# | | ?????????????????????##### | | ?????????????????????????# | | ?????????????????????????#### | | ????????????????????????????? | | ????????????????????????????? | | | | | | | | | | | | | +----------------------------------------------------+ Best States ------------- Heat Dissipation 25 Energy Generation 5 Energy Capacity 350 Matter Stores 264 Matter Capacity 450 Sight Range 16 Terrain Scan Density 10 Evasion (%) 55 Item Schematics ----------------- None Robot Schematics ------------------ None Fabricated ------------ Nothing Alien Tech Used ----------------- None Achievements -------------- None Challenges ------------ None Game ------ Seed TrapBeamExoskeleton Manual? 0 Play Time 00:10:02 Cumulative 20.6 hours Start 2023.04.26 @ 01:34:00 End 2023.04.26 @ 01:43:01 Sessions 1 Manual Loads 0 Difficulty Rogue Special Mode None Game No. 78 Rogue 42 Adventurer 36 Explorer 0 Win Type - Total 0 Types 0/0/0/0/0/0/0/0/0 Lore% 15 Gallery% 21 Achievement% 15 Wizard Run 0 Options --------- ASCII 0 Keyboard 1 Movement Numpad Keybinds 0 Fullscreen 2 Font 18/X11Bold Map View 76x50 Tactical HUD 1 Map Filters NONE Filters NONE Steam 1 RUN: 86b14dfc-dc9e-43e1-9cbd-7af5cc0cc083